Workbook

Sheet Vsebina
B2: Priloga 1
B14: Vstopne in izstopne tarifne postavke omrežnine za prenosni sistem zemeljskega plina v Sloveniji
B15: Poenostavljen tarifni model predstavlja matrični model določitve tarifnih postavk omrežnine in je pripravljen na podlagi (b) točke drugega odstavka 30. člena Uredbe Komisije (EU) 2017/460 z dne 16. marca 2017 o oblikovanju kodeksa omrežja o usklajenih tarifnih strukturah za plin
B19: Vsebina
B20: Določitev vstopnih in izstopnih tarifnih postavk omrežnine po matrični metodi
B24: Zadnja sprememba dokumenta:
B25: 2022-02-23

Sheet Navodila
B3: =Vsebina!B20 -> Določitev vstopnih in izstopnih tarifnih postavk omrežnine po matrični metodi
B5: Uporabnik ima omogočen poenostavljen izračun vstopnih in izstopnih tarifnih postavk omrežnine za posamezno vstopno oziroma izstopno točko na podlagi vnosa povprečnega dnevnega zakupa v posamezni vstopno oziroma izstopni točki (zeleno obarvana polja).
B7: Pri iskanju ustreznega korekcijskega faktorja vstopnih in izstopnih tarif za dosego pričakovanega ciljnega prihodka se uporablja Excelov dodatek "Excel Solver", katerega mora uporabnik predhodno omogočiti (Datoteka → Možnosti → Dodatki → Excel dodatki → Reševalnik)
B9: Postopek uporabniškega izračuna:
B11: Vnos povprečnega dnevnega zakupa zmogljivosti v posamezni vstopni oziroma izstopni točki , ki ne sme presegati tehnične zmogljivosti posamezne točke prenosnega sistema
B25: Tabela za vnos povprečnega dnevnega zakupa prenosne zmogljivosti v posamezni vstopno / izstopni točki
B27: Aktiviranje Excel dodatka "Reševalnik" in nastavljanje ciljnega upravičenega prihodka na strani operaterja prenosnega sistema (upravičen prihodek operaterja prenosnega sistema za leto 20XX znaša npr. XX.XXX.XXX EUR). V primeru da je spremenjen le povprečen dnevni zakup zmogljivosti v posamezni točki, se izvede le ukaz "Reši", ki izračuna ustrezen korekcijski faktor - faktor vstopno/izstopnih tarif za dosego pričakovanega ciljnega prihodka in posledično izračun ustreznih vstopnih in izstopnih tarif.
B54: Pogovorno okno Excelovega "Reševalnika"

Sheet Matrični model
H1: =Vsebina!B25 -> 2022-02-23
B2: =Vsebina!B14 -> Vstopne in izstopne tarifne postavke omrežnine za prenosni sistem zemeljskega plina v Sloveniji
B4: =Vsebina!B20 -> Določitev vstopnih in izstopnih tarifnih postavk omrežnine po matrični metodi
B9: ="Prenosni sistem zemeljskega plina v Republiki Sloveniji - Vstopno/Izstopne točke in tarife za regulatorno leto 2022" -> Prenosni sistem zemeljskega plina v Republiki Sloveniji - Vstopno/Izstopne točke in tarife za regulatorno leto 2022
B12: Tabela 1. Pretoki v dnevu vršne obremenitve prenosnega sistema
B14: Odjem zemeljskega plina | C14: Pretok [kWh/dan]
B15: Odjem v točki C (Odsek B-C) | C15: 25125837
B16: Odjem v točki E (Odsek D-E) | C16: 44547539
B17: Odjem v točki F (Odsek D-F) | C17: 4916431
B18: Skupaj | C18: 74589807
B20: Dobava zemeljskega plina | C20: 49128772
B21: Dobava v točki A (Odsek A-B) | C21: 74254609
B22: Skupaj | C22: 74254609
B24: Opomba:
B25: Pretoki ob vršni obremenitvi na dan 08.01.2020
F26: Shema prenosnega sistema porazdeljena po odsekih na dan vršne obremenitve 08.01.2020
B28: Določitev vstopni/Izstopnih tarif prenosnega sistema (Entry-Exit tarif)
B30: Vstopno/Izstopne (Entry-Exit) tarife - brez upoštevanja korekcijskega faktorja vstopno/izstopnih tarif
B33: Vstopno/Izstopne tarife [EUR/(kWh/dan)] | F33: 0.9 | G33: Tehnične zmogljivosti vstopno/izstopnih točk
B34: Vstopno/Izstopne točke | C34: Vstopne tarife | D34: =CALC!D3+CALC!D6 -> 0.1049140725 | E34: =C38*$F$33 -> 0.02005944937 | F34: =C39*$F$33 -> 1.826726306 | G34: Vstopna zmogljivosti [kWh/dan] | H34: Izstopna zmogljivosti [kWh/dan]
C35: Izstopne tarife | D35: Ceršak | E35: Rogatec | F35: Šempeter pri Gorici
B36: Slovenija | C36: =CALC!C9 -> 0.4749194409 | D36: =D$34+$C36 -> 0.5798335134 | E36: =$E$34+C36 -> 0.4949788902 | F36: =F$34+$C36 -> 2.301645747 | G36: 0 | H36: 81252000
B37: Ceršak | C37: =D34*$F$33 -> 0.09442266528 | D37: 0 | E37: =CALC!$F$11+C37 -> 0.09442266528 | F37: =F$34+$C37 -> 1.921148972 | G37: 139216000 | H37: 0
B38: Rogatec | C38: =CALC!C8 -> 0.02228827708 | D38: =D$34+$C38 -> 0.1272023496 | E38: 0 | F38: =F$34+$C38 -> 1.849014584 | G38: 7731000 | H38: 68289000
B39: Šempeter pri Gorici | C39: =CALC!C10 -> 2.029695896 | D39: =D$34+$C39 -> 2.134609969 | E39: =CALC!$F$11+C39 -> 2.029695896 | F39: 0 | G39: 28534000 | H39: 25940000
B43: Vstopno/Izstopne točke | C43: Povprečen zakup prenosnih zmogljivosti [kWh/dan] | E43: Prihodki iz naslova zakupa prenosnih zmogljivosti [€]
C44: Vstopne zmogljivosti [kWh/dan] | D44: Izstopne zmogljivosti [kWh/dan] | E44: Vstopne zmogljivosti [€] | F44: Izstopne zmogljivosti [€]
B46: Slovenija | C46: 0 | D46: 61414974 | E46: =$C$46*C36*F33 -> 0 | F46: =$D$46*C36 -> 29167165.11
B47: Ceršak | C47: 52012099 | D47: 0 | E47: =$C$47*D34 -> 5456801.127 | F47: =$D$47*C37 -> 0
B48: Rogatec | C48: 3466924 | D48: 6207000 | E48: =$C$48*E34 -> 69544.58645 | F48: =$D$48*C38 -> 138343.3358
B49: Šempeter pri Gorici | C49: 1692726 | D49: 0 | E49: =$C$49*F34 -> 3092147.114 | F49: =$D$49*C39 -> 0
B50: Skupaj | C50: =SUM(C46:C49) -> 57171749 | D50: =SUM(D46:D49) -> 67621974 | E50: 8618492.828 | F50: 29305508.45
E51: Skupni prihodek (nekorigiran) | F51: =E50+F50 -> 37924001.28
B52: Opomba:
B53: ="Ne določljive vstopno izstopne tarifne postavke se določijo kot "&TEXT(F33,"## %")&" vrednosti določljivih tarifnih postavk." -> Ne določljive vstopno izstopne tarifne postavke se določijo kot 90 % vrednosti določljivih tarifnih postavk.
B55: Vstopno/Izstopne (Entry-Exit) tarife - z upoštevanjem korekcijskega faktorja vstopno/izstopnih tarif
B58: Vstopno/Izstopne tarife [EUR/(kWh/dan)] | F58: 0.9
B59: Vstopno/Izstopne točke | C59: Vstopne tarife | D59: =D34*D79 -> 0.1090452519 | E59: =C63*$F$58 -> 0.02084932608 | F59: =C64*$F$58 -> 1.898656924
C60: Izstopne tarife | D60: Ceršak | E60: Rogatec | F60: Šempeter pri Gorici
B61: Slovenija | C61: =C36*$D$79 -> 0.4936202437 | D61: =D$59+$C61 -> 0.6026654956 | E61: =E$59+$C61 -> 0.5144695698 | F61: =F$59+$C61 -> 2.392277167
B62: Ceršak | C62: =D59*$F$58 -> 0.09814072669 | D62: 0 | E62: =C62+E59 -> 0.1189900528 | F62: =C62+F59 -> 1.99679765
B63: Rogatec | C63: =C38*$D$79 -> 0.02316591787 | D63: =D$59+$C63 -> 0.1322111698 | E63: 0 | F63: =$C$63+F59 -> 1.921822841
B64: Šempeter pri Gorici | C64: =C39*$D$79 -> 2.109618804 | D64: =E$59+$C64 -> 2.13046813 | E64: =C64+E59 -> 2.13046813 | F64: 0
B67: Vstopno/Izstopne točke | C67: Prihodki iz naslova zakupa prenosnih zmogljivosti [€]
C68: Vstopne zmogljivosti [€] | D68: Izstopne zmogljivosti [€]
B70: Slovenija | C70: =$C$46*C61 -> 0 | D70: =$D$46*C61 -> 30315674.43
B71: Ceršak | C71: =$C$47*D59 -> 5671672.436 | D71: =$D$47*C62 -> 0
B72: Rogatec | C72: =$C$48*E59 -> 72283.02899 | D72: =$D$48*C63 -> 143790.8522
B73: Šempeter pri Gorici | C73: =$C$49*F59 -> 3213905.94 | D73: =$D$49*C64 -> 0
B74: Skupaj | C74: =SUM(C70:C73) -> 8957861.405 | D74: =SUM(D70:D73) -> 30459465.29
C75: Pričakovan ciljni prihodek [€] | D75: =C74+D74 -> 39417326.69
D78: Korekcijski faktor vstopno/izstopnih tarif za dosego pričakovanega ciljnega prihodka
C79: Korekcijski faktor vstopno/izstopnih tarif Kf(EE) | D79: 1.039376789
B81: Vstopno/Izstopne (Entry-Exit) tarife - Tarifna tabela
B83: tbl_Entry-Exit
B84: Vstopno/izstopne tarife (Entry/Exit tarife) [EUR/(kWh/dan)] | C84: Ceršak | D84: Rogatec | E84: Šempeter pri Gorici | F84: Slovenija
B85: Vstopna (Entry) tarifa | C85: =ROUND(D59,7)*100 -> 10.90453 | D85: =ROUND(E59,7)*100 -> 2.08493 | E85: =ROUND(F59,7)*100 -> 189.86569 | F85: =ROUND(AVERAGE(C85:E85),5) -> 67.61838
B86: Izstopna (Exit) tarifa | C86: =ROUND(C62,7)*100 -> 9.81407 | D86: =ROUND(C63,7)*100 -> 2.31659 | E86: =ROUND(C64,7)*100 -> 210.96188 | F86: =ROUND(C61,7)*100 -> 49.36202

Sheet CALC (hidden)
D1: Strošek enote ob vršni obremenitvi [EUR/(kWh/dan)] | E1: Pričakovan prihodek [EUR]
D2: A do B | E2: A do B
B3: Odsek dostopa do prenosnega sistema | C3: Ceršak | D3: 0.1049140725 | E3: 7790353.435
B4: Skupaj | E4: 7790353.435
C5: Sistemska vstopna točka | D5: B | E5: B
C6: Sistemska vstopna tarifa (Entry tariffs) | D6: 0
B7: Sistemska izstopna točka | D7: Vstopna + Izstopna
B8: Rogatec | C8: 0.02228827708 | D8: 0.02228827708 | E8: 560011.6169
B9: Slovenija | C9: 0.4749194409 | D9: 0.4749194409 | E9: 21156492.31
B10: Šempeter pri Gorici | C10: 2.029695896 | D10: 2.029695896 | E10: 9978859.824
B11: Skupaj | E11: 31695363.75
B12: Skupaj | E12: 39485717.19
